bitfinex/quotes_ETHUSD_20250721
["timestamp","ask_amount","ask_price","bid_price","bid_amount"]
[1753116090996,0.132,3786.0,3785.9,2.66779364]
[1753116091649,0.132,3786.0,3785.7,6.98151455]
[1753116091854,0.4373,3786.5,3785.5,2.64165476]
[1753116092184,0.132,3785.8,3785.3,2.64179853]
[1753116092488,0.132,3785.6,3785.3,2.64179853]
[1753116092689,0.132,3785.6,3785.5,2.64161023]
[1753116095078,0.002,3786.0,3785.9,2.64137985]
[1753116095274,0.132,3786.2,3786.1,2.64124032]
[1753116095491,0.134,3786.8,3786.7,3.19082182]
[1753116095686,0.002,3786.8,3786.7,3.21723003]
[1753116096612,1e-08,3786.9,3786.8,6.19075208]
[1753116096831,1e-08,3786.9,3786.8,6.64795208]
[1753116097170,1e-08,3786.9,3786.8,10.98395208]
[1753116097418,1e-08,3786.9,3786.8,10.52675208]
[1753116097725,1e-08,3786.9,3786.7,4.335]
[1753116098015,0.5693,3786.8,3785.8,0.8029]
[1753116098171,0.132,3786.5,3786.4,2.64102643]
[1753116098372,0.57506,3786.5,3785.4,0.8029]
[1753116098675,0.132,3786.1,3785.7,2.64146752]
[1753116099007,0.132,3786.0,3785.8,0.02641449]
[1753116099184,0.132,3786.0,3785.9,2.64137985]
[1753116099582,0.4373,3786.8,3786.6,2.64084523]
[1753116099784,0.80820001,3786.9,3785.9,2.64137985]
[1753116099785,0.80820001,3786.9,3786.8,2.64075208]
[1753116100892,1e-08,3786.9,3786.8,2.64075208]
[1753116102774,1e-08,3786.9,3786.8,2.6671596]
[1753116103219,1e-08,3786.9,3786.8,3.2171596]
[1753116103731,1e-08,3786.9,3786.8,3.6743596]
[1753116103874,1e-08,3786.9,3786.8,4.4825596]
[1753116104223,1e-08,3786.9,3786.8,4.1573596]
[1753116104574,1e-08,3786.9,3786.8,4.6145596]
[1753116105009,1e-08,3786.9,3786.8,4.2395596]
[1753116107291,1e-08,3786.9,3786.8,7.2395596]
[1753116107476,1e-08,3786.9,3786.8,7.21315208]
[1753116108674,0.1312,3788.0,3787.9,2.63998521]
[1753116109114,0.1312,3788.0,3787.5,4.33]
[1753116109298,0.132,3787.8,3787.5,4.33]
[1753116109476,0.132,3787.8,3787.7,2.64012461]
[1753116110819,0.5741,3787.8,3787.7,2.64012461]
[1753116111516,0.7591,3787.7,3786.8,0.8082]
[1753116111679,0.13332,3787.6,3787.5,2.64026402]
[1753116112077,0.57542,3787.6,3787.5,2.64026402]
[1753116114184,0.132,3787.5,3787.4,2.64030725]
[1753116114387,0.4421,3787.5,3786.5,2.6409613]
[1753116114600,0.133452,3787.4,3786.5,2.6409613]
[1753116114819,0.132,3786.7,3786.6,2.66730047]
[1753116116009,0.133452,3787.4,3787.3,2.64040345]
[1753116117164,0.002,3787.6,3787.5,2.64026402]
[1753116117515,0.134,3787.6,3787.5,2.66666666]
[1753116118137,0.002,3787.6,3787.5,14.35212169]
[1753116118306,0.002,3787.6,3787.5,14.32571905]
[1753116118813,0.1312,3788.0,3787.9,2.63998521]
[1753116119217,0.002,3788.1,3788.0,2.63991552]
[1753116119396,0.002,3788.1,3788.0,2.66631467]
[1753116120298,0.002,3788.1,3788.0,2.63991552]
[1753116120498,0.002,3788.1,3788.0,2.66631467]
[1753116120700,0.002,3788.1,3788.0,2.63991552]
[1753116121022,0.002,3788.1,3787.0,4.324]
[1753116121023,0.4441,3788.1,3787.0,4.324]
[1753116121193,0.7977,3788.0,3787.1,0.02640542]
[1753116121535,3.0,3787.8,3786.7,2.64077465]
[1753116121746,0.7977,3787.6,3785.1,2.64287983]
[1753116122037,0.7977,3787.5,3786.3,2.64104384]
[1753116122209,0.7977,3787.5,3785.3,3.0]
[1753116122406,0.7977,3787.3,3786.6,2.64083911]
[1753116122638,0.7977,3787.3,3785.9,0.02741379]
[1753116122639,0.4421,3787.2,3785.9,0.02741379]
[1753116122798,0.7977,3787.0,3785.9,0.001]
[1753116123234,0.7977,3787.0,3785.9,2.64236982]
[1753116123447,0.7562,3786.8,3786.1,2.6412382]
[1753116123638,0.7562,3786.8,3786.0,2.64129768]
[1753116123932,0.4421,3786.7,3786.4,2.64099493]
[1753116124140,0.55193,3786.6,3786.4,2.64099493]
[1753116124345,0.99403,3786.6,3786.5,2.6409613]
[1753116124525,0.99403,3786.6,3786.2,2.64110587]
[1753116124726,0.4421,3786.5,3786.3,2.64108766]
[1753116124932,0.55193,3786.6,3786.1,2.64117317]
[1753116125134,0.4421,3786.4,3786.3,2.64110081]
[1753116126443,0.4421,3786.4,3786.2,2.64114992]
[1753116126646,0.562913,3786.5,3786.3,2.64110081]
[1753116127009,0.562913,3786.5,3786.4,2.64103105]
[1753116127537,3.0,3787.6,3787.1,2.64054289]
[1753116127538,0.4421,3787.2,3787.1,2.64054289]
[1753116128244,0.4421,3787.2,3786.1,0.7677]
[1753116128245,0.4421,3787.2,3786.8,2.64072032]
[1753116128412,0.4421,3787.1,3786.8,2.64072032]
[1753116128609,0.4421,3787.0,3786.7,2.64076491]
[1753116128936,0.4421,3787.0,3786.7,2.64081457]
[1753116129266,0.7958,3786.9,3786.1,0.0264124]
[1753116129466,0.7958,3786.9,3786.8,2.64075208]
[1753116129665,5.53859,3786.9,3786.8,2.64075208]
[1753116129811,5.98069,3786.9,3786.8,2.64075208]
[1753116130464,1.2379,3787.4,3787.3,2.64040345]
[1753116130813,0.7958,3787.4,3787.3,2.64040345]
[1753116131645,1.2379,3787.4,3787.3,2.64040345]
[1753116132415,0.132,3787.3,3786.2,0.7677]
[1753116132619,4.318,3787.5,3787.0,2.64061262]
[1753116132818,4.318,3787.5,3787.4,2.64033373]
[1753116133344,7.5084,3787.7,3787.6,2.64019431]
[1753116133541,11.8264,3787.7,3787.6,2.64019431]
[1753116133854,11.8264,3787.7,3787.0,0.02640612]
[1753116133855,11.8264,3787.7,3787.5,2.64023845]
[1753116134174,0.132,3787.4,3787.3,2.64040345]
[1753116134816,0.5741,3787.4,3787.0,2.64057341]
[1753116135013,0.132,3787.1,3787.0,2.64057341]
[1753116135348,4.8901,3787.1,3786.6,2.64089156]
[1753116135555,0.4421,3787.0,3786.9,2.64068235]
[1753116135715,4.7581,3787.0,3786.5,0.001]
[1753116135922,0.7769,3786.8,3786.5,0.001]
[1753116136371,0.457,3786.7,3786.5,0.001]
[1753116137293,0.7769,3786.8,3786.5,0.001]
[1753116137294,0.457,3786.6,3786.5,2.64195219]
[1753116137575,0.457,3786.6,3786.5,0.001]
[1753116138430,1.2339,3786.6,3786.5,0.001]
[1753116138665,1.96894136,3786.6,3786.5,0.001]
[1753116139152,6.28394136,3786.6,3786.5,0.001]
[1753116140071,8.92483292,3786.6,3786.5,0.001]
[1753116140637,12.47483292,3786.6,3786.5,0.001]
[1753116141872,3.19131008,3786.0,3785.9,0.001]
[1753116142048,21.97277567,3786.0,3785.9,0.001]
[1753116142254,6.96776832,3785.2,3785.1,0.001]
[1753116142442,17.61776832,3785.2,3785.1,0.001]
[1753116142642,20.70330225,3785.2,3785.1,0.001]
[1753116143151,3.55,3785.1,3782.5,2.67014096]
[1753116143354,0.55,3784.7,3782.9,2.64345252]
[1753116143582,6.9826268,3784.4,3782.4,0.7897]
[1753116143764,6.9826268,3784.4,3782.6,2.64362535]
[1753116144073,15.48876559,3784.4,3783.1,2.64326647]
[1753116144277,23.15860547,3784.4,3782.1,2.67141876]
[1753116144454,11.35461308,3784.4,3782.2,0.49573963]
[1753116144638,9.1102,3784.4,3782.9,2.64346703]
[1753116144835,11.94916345,3784.4,3782.8,2.64353751]
[1753116145042,11.94916345,3784.4,3782.2,0.49573963]
[1753116145043,4.2472,3784.4,3783.0,2.64339352]
[1753116145248,4.2472,3784.4,3782.6,3.11293743]
[1753116145249,8.5602,3784.4,3783.4,2.64310702]
[1753116145474,11.7526268,3784.4,3782.8,2.64351947]
[1753116145679,10.54969161,3784.4,3782.7,2.64361418]
[1753116145844,10.54969161,3784.4,3782.9,2.64346725]
[1753116146039,13.38534576,3784.4,3782.2,2.64391673]
[1753116146378,13.38534576,3784.4,3783.0,2.64338828]
[1753116146379,10.74291896,3784.4,3783.0,2.64338828]
[1753116146542,9.07234576,3784.4,3782.8,2.64353289]
[1753116146894,13.38534576,3784.4,3782.2,0.02643963]
[1753116147039,13.38534576,3784.4,3782.1,0.001]
[1753116147444,13.38534576,3784.4,3782.6,2.64367474]
[1753116147658,13.38534576,3784.4,3782.8,2.64349678]
[1753116147860,9.07234576,3784.4,3782.1,0.001]
[1753116148178,1.3649,3783.7,3782.4,2.64377754]
[1753116148344,0.8149,3783.4,3782.1,2.64502685]
[1753116148551,0.132,3782.2,3782.1,2.64503373]
[1753116148748,4.445,3782.2,3782.1,2.64503373]
[1753116149068,0.132,3782.2,3782.1,2.64503373]
[1753116149267,4.445,3782.2,3782.1,3.11433373]
[1753116149482,4.445,3782.2,3782.1,2.64503373]
[1753116150778,0.132,3782.2,3782.1,3.11433373]
[1753116151480,0.132,3782.2,3782.1,3.93093373]
[1753116152158,0.132,3782.2,3782.1,3.46163373]
[1753116153073,0.132,3782.2,3782.1,3.93093373]
[1753116153478,1e-08,3782.2,3782.1,3.95737406]
[1753116153974,0.8149,3783.4,3783.3,2.64319509]
[1753116154179,1.2628,3783.8,3783.7,2.64291566]
[1753116154485,7.81,3785.0,3783.7,2.64291566]
[1753116154486,0.8058,3784.2,3783.9,2.64277597]
[1753116154781,0.8058,3784.2,3782.9,3.11276992]
[1753116154782,0.132,3783.7,3782.5,0.7874]
[1753116154985,4.311,3783.6,3783.4,2.64307153]
[1753116155153,4.311,3783.6,3783.4,2.64310122]
[1753116155154,0.457,3783.5,3783.4,2.64310122]
[1753116155356,4.311,3783.6,3783.5,2.64305537]
[1753116155575,4.311,3783.6,3783.2,2.64321067]
[1753116155777,4.311,3783.6,3783.5,2.64305537]
[1753116155949,4.311,3783.6,3782.5,0.7874]
[1753116156150,4.311,3783.6,3781.4,0.001]
[1753116156151,0.8207,3783.4,3782.1,0.7884]
[1753116156387,0.8207,3783.4,3783.2,2.64321469]
[1753116156572,4.311,3783.3,3783.2,2.64326496]
[1753116157175,4.311,3783.3,3783.0,2.64334777]
[1753116157506,4.311,3783.3,3782.4,0.02643824]
[1753116157704,4.311,3783.3,3782.7,2.6435969]
[1753116157992,4.311,3783.3,3782.8,2.6435393]
[1753116158390,4.7421,3783.3,3782.7,2.64359941]
[1753116158685,4.311,3783.3,3782.4,0.02643824]
[1753116158890,1.2777,3783.8,3782.4,0.02643824]
[1753116158891,4.31,3783.2,3782.4,0.02643824]
[1753116159075,4.31,3783.1,3782.3,2.64389392]
[1753116159275,4.31,3783.1,3782.9,2.64347438]
[1753116159668,4.31,3783.1,3782.8,2.64352481]
[1753116159988,4.31,3783.1,3782.8,2.64348557]
[1753116160192,4.31,3783.1,3782.9,2.64347038]
[1753116160388,4.31,3783.1,3782.8,2.64352182]
[1753116160555,4.31,3783.1,3782.3,0.4693]
[1753116160755,4.741,3783.1,3782.4,2.64375834]
[1753116161108,4.741,3783.1,3782.4,2.64376644]
[1753116161295,4.741,3783.1,3782.3,2.64387919]
[1753116161460,4.741,3783.1,3782.7,2.64360775]
[1753116161791,4.741,3783.1,3782.5,2.64370281]
[1753116161975,0.5198,3783.0,3782.5,2.64370281]
[1753116162176,0.5198,3783.0,3782.6,2.64365606]
[1753116162384,0.5198,3783.0,3782.5,2.64373633]
[1753116162592,0.5198,3783.0,3782.4,2.64380117]
[1753116162797,0.5198,3783.0,3782.5,2.64375271]
[1753116162998,0.48298,3782.9,3782.5,2.64375271]
[1753116163206,0.93998,3782.9,3782.4,2.6438044]
[1753116163488,0.93998,3782.9,3782.2,2.64396383]
[1753116163691,0.93998,3782.9,3782.5,2.64374117]
[1753116163914,0.8207,3783.8,3782.8,2.64354446]
[1753116164067,0.8207,3783.8,3783.4,2.64306444]
[1753116164267,4.308,3783.7,3783.6,2.64298551]
[1753116164493,0.7703,3784.2,3783.7,2.64290947]
[1753116164915,3.0,3784.0,3783.1,0.4693]
[1753116165121,4.307,3784.1,3783.1,0.4693]
[1753116165412,0.55363,3784.0,3783.1,0.4693]
[1753116165566,0.7703,3784.2,3783.1,0.4693]
[1753116165773,0.002,3784.3,3784.2,2.64256646]
[1753116166468,4.309,3784.3,3784.2,2.64256646]
[1753116166668,0.002,3784.3,3784.2,2.64256646]
[1753116166882,0.002,3784.3,3784.2,3.08096646]
[1753116167115,0.002,3784.3,3784.2,3.86479212]
[1753116167673,1e-08,3784.3,3784.2,3.86479212]
[1753116168476,1e-08,3784.3,3784.2,4.41479212]
[1753116168681,1e-08,3784.3,3784.2,4.54679212]
[1753116169007,1e-08,3784.3,3784.2,7.54679212]
[1753116169188,1e-08,3784.3,3784.2,7.52036646]
[1753116169803,1e-08,3784.3,3784.2,6.97036646]
[1753116170009,1e-08,3784.3,3784.2,6.83836646]
[1753116170196,1e-08,3784.3,3784.2,3.83836646]
[1753116170391,1e-08,3784.3,3784.2,3.86479212]
[1753116172488,1e-08,3784.4,3784.3,3.19249663]
[1753116172693,1e-08,3784.4,3784.3,3.08089663]
[1753116174402,1e-08,3784.4,3784.3,2.64249663]
[1753116175741,0.13200001,3784.4,3784.3,2.64249663]
[1753116177532,0.8218,3784.3,3783.9,2.64272286]
[1753116177732,0.4406,3784.2,3783.5,2.64300837]
[1753116178044,0.55624,3784.1,3783.4,2.64307019]
[1753116178241,14.9406,3784.0,3783.5,2.64304457]
[1753116178550,0.4406,3783.9,3783.5,2.64304457]
[1753116178705,0.55624,3784.1,3783.5,2.64304457]
[1753116178909,0.4406,3783.8,3783.4,2.64310933]
[1753116179118,0.4406,3783.7,3783.4,2.64310933]
[1753116179322,0.4406,3783.7,3783.5,2.64302363]
[1753116179612,0.4406,3783.7,3783.6,2.64298551]
[1753116179817,0.4406,3783.7,3783.5,2.64305475]
[1753116180016,4.299,3783.8,3783.5,2.64305475]
[1753116180215,0.4406,3783.6,3783.5,2.64305475]
[1753116180815,0.4406,3783.6,3783.4,0.001]
[1753116181016,1.2624,3783.5,3783.4,0.001]
[1753116181410,15.7624,3783.5,3783.4,0.001]
[1753116181960,4.299,3783.5,3783.4,2.64412523]
[1753116182315,5.1695,3783.5,3783.4,2.64412523]
[1753116182517,14.5,3783.8,3783.7,2.64291566]
[1753116182819,18.799,3783.8,3783.7,2.64291566]
[1753116183172,4.298,3783.8,3783.7,2.64291566]
[1753116184166,0.8218,3783.9,3783.8,2.64284581]
[1753116184330,0.8218,3783.9,3783.4,0.001]
[1753116184519,6.31484,3783.8,3783.7,2.64291566]
[1753116185427,6.31384,3783.8,3783.7,2.64291566]
[1753116185751,2.01684,3783.8,3783.7,2.64291566]
[1753116185924,2.01684,3783.8,3783.6,2.6429641]
[1753116186128,4.7376,3783.7,3783.4,2.64408837]
[1753116186320,0.4406,3783.6,3783.5,2.64304441]
[1753116186825,0.4406,3783.6,3783.4,0.001]
[1753116187025,4.297,3783.7,3783.5,2.64305537]
[1753116187229,4.297,3783.7,3783.4,0.001]
[1753116187451,1.96188,3783.6,3783.5,2.64305537]
[1753116187753,2.40248,3783.6,3783.0,2.64335321]
[1753116188052,1.1924,3783.5,3783.0,2.64340271]
[1753116188263,0.132,3783.0,3782.2,2.64394404]
[1753116188441,4.296,3782.9,3782.8,2.64354446]
[1753116188955,5.1662,3782.9,3782.8,2.64354446]
[1753116189352,4.7256,3782.9,3782.8,2.64354446]
[1753116189651,1.1924,3783.5,3783.4,2.64312523]
[1753116189869,5.4884,3783.5,3783.4,2.64312523]
[1753116190016,0.132,3783.4,3783.3,2.64318661]
[1753116190218,5.4884,3783.5,3783.0,2.64339688]
[1753116190219,0.7518,3783.5,3783.4,2.64312523]
[1753116190551,1.96188,3783.6,3783.5,2.64305537]
[1753116190755,0.132,3783.4,3783.3,2.64319509]
[1753116193023,4.427,3783.4,3783.3,2.64319509]
[1753116195132,4.8676,3783.4,3783.3,2.64319509]
[1753116195332,0.8118,3783.3,3783.0,2.6433567]
[1753116195532,0.4406,3783.2,3783.0,2.6433567]
[1753116195724,0.68674,3783.1,3783.0,2.6433567]
[1753116196318,0.132,3783.1,3783.0,2.6433567]
[1753116196458,4.425,3783.1,3783.0,2.6433567]
[1753116196825,0.132,3783.1,3783.0,2.6433567]
[1753116197025,4.425,3783.1,3783.0,2.6433567]
[1753116197242,0.132,3783.1,3783.0,2.6433567]
[1753116197652,4.424,3783.1,3783.0,2.6433567]
[1753116197862,0.132,3783.1,3783.0,2.6433567]
[1753116198026,4.424,3783.1,3783.0,2.6433567]
[1753116198434,1e-08,3783.1,3783.0,2.6433567]
[1753116198658,1e-08,3783.1,3783.0,3.8780567]
[1753116201446,1e-08,3783.1,3783.0,8.7190567]
[1753116201764,0.00200001,3784.4,3784.3,2.64249663]
[1753116201936,1e-08,3784.4,3784.3,2.64249663]
[1753116202142,1e-08,3784.4,3784.3,3.10922159]
[1753116202551,1e-08,3784.6,3784.5,2.64235698]
[1753116202756,0.002,3785.1,3785.0,2.64200792]
[1753116206049,0.002,3785.1,3784.9,2.64201614]
[1753116206050,0.4372,3785.1,3784.9,2.64201614]
[1753116206371,0.7863,3784.8,3784.0,2.64268094]
[1753116206574,0.132,3784.0,3783.5,2.64302686]
[1753116206753,0.132,3783.7,3783.3,0.8163]
[1753116207075,0.132,3783.7,3783.6,2.64298551]
[1753116207600,0.132,3783.7,3783.6,3.08328551]
[1753116207800,14.9352,3784.6,3784.2,2.64256646]
[1753116207801,0.4352,3784.6,3784.2,2.64256646]
[1753116207962,0.7863,3784.8,3784.7,2.64221734]
[1753116208166,20.0085,3784.8,3784.6,2.64223938]
[1753116208407,2.43605,3784.7,3784.6,2.64223938]
[1753116209021,0.132,3784.6,3784.2,2.64253825]
[1753116209301,0.4352,3784.5,3784.4,2.64237162]
[1753116210202,0.132,3784.4,3783.7,2.6429077]
[1753116210397,0.4352,3784.5,3783.3,0.8163]
[1753116210398,0.132,3784.2,3784.1,2.64263629]
[1753116210598,0.4352,3784.5,3784.4,2.6424268]
[1753116210798,6.29335,3784.5,3784.4,2.6424268]
[1753116211481,6.29235,3784.5,3784.4,2.6424268]
[1753116212302,6.29235,3784.5,3784.3,2.6424787]
[1753116212477,3.4352,3784.4,3783.1,2.64329838]
[1753116212682,0.132,3783.6,3783.2,2.64326496]
[1753116212878,0.4352,3783.9,3783.8,2.6428063]
[1753116213089,6.21272,3783.9,3783.8,2.6428063]
[1753116213289,0.132,3783.8,3783.7,2.64290033]
[1753116213500,5.77752,3783.9,3783.7,2.64290033]
[1753116213706,0.132,3783.7,3783.0,0.001]
[1753116213905,0.7521,3783.6,3783.4,2.64310962]
[1753116214206,0.4352,3783.5,3783.4,2.64312523]
[1753116214807,0.132,3783.4,3783.3,2.64317542]
[1753116215106,0.132,3783.3,3783.0,0.001]
[1753116215309,0.4352,3783.3,3783.0,0.001]
[1753116215471,0.4352,3783.3,3783.2,2.64326496]
[1753116215811,4.284,3783.4,3783.3,2.64319509]
[1753116216402,0.132,3783.3,3783.2,2.64325289]
[1753116216715,0.4352,3783.3,3783.2,2.64325289]
[1753116217127,4.284,3783.4,3783.3,2.64319509]
[1753116217275,4.283,3783.4,3783.0,0.001]
[1753116217478,4.283,3783.4,3783.3,2.64319509]
[1753116217817,1.2125,3784.0,3783.6,2.64295098]
[1753116218011,4.283,3783.9,3783.8,2.64278295]
[1753116218221,4.83255,3783.9,3783.8,2.64278295]
[1753116218585,5.26775,3783.9,3783.8,2.64278295]
[1753116218786,5.26775,3783.9,3783.0,0.001]
[1753116218787,0.132,3783.8,3783.7,2.64291307]
[1753116218994,0.4352,3783.8,3783.7,2.64291307]
[1753116219605,0.132,3783.7,3783.1,0.02643334]
[1753116219881,0.132,3783.5,3783.4,2.64312523]
[1753116220083,4.282,3783.5,3783.4,2.64312523]
[1753116221126,4.282,3783.5,3783.0,2.6443723]
[1753116221127,0.132,3783.4,3783.0,0.001]
[1753116221413,0.92012,3783.4,3783.1,2.64328583]
[1753116221592,1.2221,3783.3,3783.0,0.001]
[1753116222140,0.4352,3783.2,3783.0,0.001]
[1753116222308,4.281,3783.1,3783.0,0.001]
[1753116222479,4.7162,3783.1,3783.0,0.001]
[1753116222676,5.315002,3783.1,3783.0,0.001]
[1753116223490,8.315002,3783.1,3783.0,0.001]
[1753116224215,23.601902,3783.1,3783.0,0.001]
[1753116224416,26.24523683,3783.1,3783.0,0.001]
[1753116224930,23.601902,3783.1,3783.0,0.001]
[1753116230229,24.151902,3783.1,3783.0,0.001]
[1753116230437,26.79523683,3783.1,3783.0,0.001]
[1753116230798,3.682,3783.0,3782.0,2.64408596]
[1753116231131,0.132,3782.1,3782.0,2.64408596]
[1753116231426,4.8616,3782.1,3781.8,0.001]
[1753116231595,0.4526,3782.0,3781.8,2.64523964]
[1753116231796,4.277,3781.9,3781.8,2.64523964]
[1753116232008,6.00756,3781.9,3781.8,0.001]
[1753116232517,9.00756,3781.9,3781.8,0.001]
[1753116232828,24.05756,3781.9,3781.8,0.001]
[1753116233133,26.70173356,3781.9,3781.8,0.001]
[1753116234397,7.01492319,3781.4,3781.3,0.001]
[1753116234602,11.99241551,3781.4,3781.3,0.001]
[1753116234812,12.44501551,3781.4,3781.3,0.001]
[1753116235017,29.72801551,3781.4,3781.3,0.001]
[1753116235234,29.72801551,3781.4,3780.5,0.001]
[1753116235235,6.19501282,3780.7,3780.5,0.001]
[1753116235437,17.62381282,3780.7,3780.5,0.001]
[1753116235735,20.70394675,3780.7,3780.5,0.001]
[1753116236298,20.90373385,3780.7,3780.5,0.001]
[1753116236499,16.62873385,3780.7,3780.5,0.001]
[1753116236699,20.90473385,3780.7,3780.5,0.001]
[1753116240108,35.40473385,3780.7,3780.5,0.001]
[1753116240650,28.48372103,3780.7,3780.5,0.001]
[1753116240804,0.70149232,3781.4,3780.6,2.64608279]
[1753116241010,4.274,3781.3,3780.6,0.001]
[1753116241242,4.274,3781.2,3780.6,0.001]
[1753116241444,0.96049,3781.2,3780.7,2.64501282]
[1753116241747,0.96049,3781.2,3780.6,0.001]
[1753116241748,0.132,3780.7,3780.6,0.001]
[1753116242262,7.406,3780.7,3780.6,2.64608279]
[1753116242472,0.132,3780.7,3780.6,2.64608279]
[1753116242747,0.132,3780.7,3780.6,3.92278279]
[1753116242970,4.406,3780.7,3780.6,3.92278279]
[1753116243273,0.132,3780.7,3780.6,3.47788279]
[1753116243410,4.406,3780.7,3780.6,3.47788279]
[1753116243606,0.132,3780.7,3780.6,3.47788279]
[1753116243858,4.406,3780.7,3780.6,3.47788279]
[1753116244755,4.406,3780.7,3780.6,3.92278279]
[1753116245258,0.132,3780.7,3780.6,3.92278279]
[1753116245461,1e-08,3780.7,3780.6,3.92278279]
[1753116245630,0.7738,3782.9,3781.3,0.7935]
[1753116245833,4.273,3782.8,3782.4,2.64380708]
[1753116246157,15.00468,3782.7,3782.6,2.64367504]
[1753116246456,19.27668,3782.7,3782.6,2.64367504]
[1753116246641,0.7802,3783.4,3782.5,2.64375413]
[1753116246846,0.132,3782.4,3782.3,2.64386858]
[1753116247160,0.786,3783.8,3782.2,0.7738]
[1753116247346,0.786,3783.8,3783.5,2.64305537]
[1753116247528,4.404,3783.5,3783.4,2.64312523]
[1753116247724,8.47086,3783.5,3783.4,2.64312523]
[1753116247927,5.47086,3783.5,3783.4,2.64312523]
[1753116248256,0.132,3783.4,3783.3,2.64317984]
[1753116248442,3.0,3783.4,3783.3,2.64317984]
[1753116248759,5.92346,3783.5,3783.3,2.64317984]
[1753116248962,4.226946,3783.4,3783.3,2.64317984]
[1753116249859,0.132,3783.3,3783.2,2.64325195]
[1753116250060,4.226946,3783.4,3783.3,2.64319509]
[1753116250723,4.226946,3783.4,3783.2,2.64325419]
[1753116250923,4.226946,3783.4,3783.3,2.64319509]
[1753116251944,8.496946,3783.4,3783.3,2.64319509]
[1753116252138,4.226946,3783.4,3783.3,2.64319509]
[1753116252344,0.55847175,3783.5,3783.4,2.64312523]
[1753116252527,4.268,3783.5,3783.4,2.64312523]
[1753116252735,4.8265609,3783.5,3783.4,2.64312523]
[1753116253431,0.5585609,3783.5,3783.4,2.64312523]
[1753116253630,9.346,3783.6,3783.5,2.64305537]
[1753116253942,14.1715609,3783.6,3783.5,2.64305537]
[1753116254827,0.5585609,3783.6,3783.5,3.08795537]
[1753116255163,4.267,3783.6,3783.5,3.08795537]
[1753116255530,5.1463,3783.6,3783.4,2.64310493]
[1753116255727,0.132,3783.3,3783.2,2.64319884]
[1753116255933,4.266,3783.3,3783.1,2.6433346]
[1753116256160,4.266,3783.3,3783.2,2.64326496]
[1753116256882,4.266,3783.3,3782.8,2.64350452]
[1753116256883,7.266,3783.3,3782.1,2.64403373]
[1753116257031,3.4266,3783.2,3782.0,0.8228]
[1753116257228,3.4266,3783.2,3783.0,2.64334323]
[1753116257442,3.0,3783.0,3782.9,2.6434161]
[1753116257879,0.4266,3783.2,3783.0,2.64340175]
[1753116258031,4.265,3783.1,3783.0,2.64338389]
[1753116258236,7.265,3783.1,3783.0,2.64338389]
[1753116258630,4.265,3783.1,3782.9,2.643458]
[1753116259031,7.265,3783.1,3783.0,2.6434047]
[1753116259268,7.265,3783.1,3781.4,0.4376]
[1753116259470,4.9259,3783.0,3782.0,2.64408968]
[1753116259764,2.64358977,3782.8,3781.6,0.8148]
[1753116259967,4.6983,3782.7,3781.6,0.8148]
[1753116260181,4.6983,3782.7,3782.3,2.64385222]
[1753116260390,4.264,3782.7,3782.3,2.64385222]
[1753116260586,0.4264,3782.6,3782.3,2.64385222]
[1753116260883,3.0,3782.4,3782.3,2.64389392]
[1753116261084,4.263,3782.4,3782.3,2.64389392]
[1753116261297,4.263,3782.4,3782.3,3.45889392]
[1753116261504,0.7265,3783.0,3782.7,2.64361027]
[1753116261652,0.4343,3783.2,3782.7,2.64361027]
[1753116261653,3.0,3782.8,3782.7,2.64361027]
[1753116261852,0.4343,3783.2,3783.0,2.64339789]
[1753116262081,7.263,3783.1,3782.9,2.64345296]
[1753116262294,3.0,3783.1,3783.0,2.6434047]
[1753116262465,7.263,3783.1,3783.0,2.6434047]
[1753116262667,8.06622,3783.1,3782.7,2.64361086]
[1753116262893,8.06622,3783.1,3782.9,2.64342515]
[1753116263605,8.06622,3783.1,3783.0,2.6434047]
[1753116263894,8.06622,3783.1,3782.7,2.64356519]
[1753116263895,8.06522,3783.1,3782.7,2.64356519]
[1753116264086,8.06522,3783.1,3782.3,0.815]
[1753116264087,3.80322,3783.1,3782.8,2.64350846]
[1753116264287,3.0,3782.9,3782.8,2.64350846]
[1753116264653,3.0,3782.9,3782.3,0.815]
[1753116264654,0.7692,3783.4,3782.4,2.64382402]
[1753116264859,3.0,3783.2,3782.3,1.2526]
[1753116265059,4.262,3783.3,3783.0,2.64335789]
[1753116265262,4.262,3783.3,3782.3,3.89644982]
[1753116265263,4.262,3783.3,3782.5,2.64375413]
[1753116265460,4.262,3783.3,3783.2,2.64326496]
[1753116265753,4.262,3783.3,3782.1,0.02644033]
[1753116265754,4.2313134,3781.7,3778.3,0.7643]
[1753116265960,0.55,3779.6,3778.3,0.7643]
[1753116266180,2.64599264,3779.3,3778.3,0.7643]
[1753116266410,3.22243105,3779.3,3778.3,0.7643]
[1753116266790,4.335,3779.2,3778.3,0.7643]
[1753116266956,3.02643841,3779.1,3778.3,0.7643]
[1753116267283,3.0,3778.9,3778.3,0.001]
[1753116267598,1.30045848,3778.8,3778.3,0.001]
[1753116267796,3.0,3778.6,3778.3,0.001]
[1753116268107,0.02643841,3778.5,3778.3,0.001]
[1753116268261,4.35643841,3778.5,3778.3,0.001]
[1753116268462,4.35643841,3778.5,3778.4,2.6466229]
[1753116268799,4.35643841,3778.5,3778.3,0.001]
[1753116269599,4.79208225,3778.5,3778.3,0.001]
[1753116270396,0.46208225,3778.5,3778.3,0.001]
[1753116270702,4.324,3778.4,3778.3,2.64769295]
[1753116271075,0.02643841,3779.0,3778.3,0.001]
[1753116271280,3.0,3778.8,3778.3,2.64767753]
[1753116271515,7.34843841,3778.7,3778.6,2.64648282]
[1753116271677,7.322,3778.7,3778.3,0.001]
[1753116271875,0.02643841,3778.6,3778.5,2.64655229]
[1753116272186,4.322,3778.6,3778.5,2.64655229]